bitfinex/quotes_ETHUSD_20220202
["timestamp","ask_amount","ask_price","bid_price","bid_amount"]
[1643820234045,0.00501971,2654.7,2653.7,2.841]
[1643820234246,0.00501971,2654.7,2653.6,3.74638166]
[1643820234444,0.00501971,2654.7,2653.8,0.866622]
[1643820234445,1.0853777,2654.6,2653.8,0.866622]
[1643820234688,1.0853777,2654.6,2653.8,1.04397871]
[1643820234892,0.1882,2654.6,2653.8,1.04397871]
[1643820235093,1.64915319,2654.8,2653.8,1.04397871]
[1643820235094,0.00502,2654.3,2653.8,1.04397871]
[1643820235889,0.1882,2654.7,2653.8,1.04397871]
[1643820236089,0.00502006,2654.2,2653.8,1.04397871]
[1643820236290,0.00502006,2654.2,2653.8,0.866622]
[1643820237091,0.1882,2654.7,2653.8,0.866622]
[1643820237292,1.51355224,2654.9,2653.8,0.866622]
[1643820237293,0.1882,2654.8,2653.8,1.07620522]
[1643820237593,0.0050201,2654.1,2653.8,1.07620522]
[1643820238454,0.1882,2654.8,2653.8,1.07620522]
[1643820238644,0.00330352,2654.1,2653.8,3.83828223]
[1643820238844,0.00330352,2654.1,2653.8,1.07620522]
[1643820239244,0.00556218,2654.1,2653.8,0.866622]
[1643820239444,0.00225866,2654.1,2653.8,0.866622]
[1643820239944,0.00556218,2654.1,2653.8,0.866622]
[1643820240646,0.00225866,2654.1,2653.8,0.866622]
[1643820241049,0.00556218,2654.1,2653.8,0.866622]
[1643820241946,0.00225866,2654.1,2653.7,1.18968166]
[1643820242205,0.00225866,2654.1,2653.7,0.18968166]
[1643820242206,2.10720622,2654.1,2653.7,0.18968166]
[1643820242404,2.10720622,2654.1,2653.4,0.00502763]
[1643820242704,2.10720622,2654.1,2653.5,0.00149151]
[1643820242902,0.1884,2654.0,2653.5,0.00149151]
[1643820243102,1.10455865,2654.0,2653.4,0.00502763]
[1643820243302,1.10455865,2654.0,2653.3,0.00149151]
[1643820243601,0.00502637,2653.9,2653.4,0.00502744]
[1643820244703,0.00502625,2653.9,2653.4,0.00502725]
[1643820245704,0.91841066,2654.0,2653.3,0.00149151]
[1643820245950,0.0045336,2653.9,2653.4,0.00453451]
[1643820246651,0.0045336,2653.9,2653.5,0.1884]
[1643820246850,0.00225201,2654.0,2653.5,0.1884]
[1643820247049,0.00436774,2653.9,2653.6,0.19962728]
[1643820247250,0.00436774,2653.9,2653.6,0.68802728]
[1643820247448,0.00436774,2653.9,2653.7,0.81552971]
[1643820247653,0.00436774,2653.9,2653.6,0.19962728]
[1643820248049,0.00225201,2654.0,2653.6,0.19962728]
[1643820248250,0.00436784,2653.9,2653.6,0.19962728]
[1643820248451,0.00436784,2653.9,2653.6,0.86540728]
[1643820248651,0.00436784,2653.9,2653.7,1.42666439]
[1643820248850,0.00436784,2653.9,2653.8,6.3914]
[1643820249051,0.00436784,2653.9,2653.8,8.11806439]
[1643820249250,2.09973316,2655.0,2653.8,9.11806439]
[1643820249450,0.15644946,2654.9,2654.6,0.87707004]
[1643820250090,0.15644946,2654.9,2654.1,0.94198]
[1643820250291,0.15644946,2654.9,2654.0,0.6412]
[1643820250494,0.15644946,2654.9,2654.1,0.19031632]
[1643820250793,0.16101057,2654.9,2654.1,0.19031632]
[1643820250990,0.8443637,2654.9,2654.1,0.19031632]
[1643820251290,0.15652732,2654.8,2654.1,0.19031632]
[1643820251889,0.15652732,2654.7,2654.1,0.19031632]
[1643820252096,2.80661635,2655.0,2654.1,0.19031632]
[1643820252097,0.16108856,2654.6,2654.1,0.19031632]
[1643820252293,0.15652732,2654.5,2654.1,0.19031632]
[1643820252491,0.15652732,2654.4,2654.1,0.19031632]
[1643820252691,0.00456124,2654.6,2654.1,0.19031632]
[1643820252692,0.15652732,2654.3,2654.1,0.19031632]
[1643820252892,2.80661635,2655.0,2654.1,0.19031632]
[1643820253097,0.00470284,2654.4,2654.1,0.19031632]
[1643820253293,0.15751138,2654.3,2654.1,0.19031632]
[1643820254141,0.00230523,2654.8,2654.1,0.19031632]
[1643820254345,0.00471403,2654.3,2654.1,0.19031632]
[1643820255141,0.00230523,2654.8,2654.1,0.19031632]
[1643820255645,0.00471403,2654.3,2654.1,0.19031632]
[1643820256641,0.00425136,2654.3,2654.1,0.19031632]
[1643820257893,0.00424497,2654.3,2654.1,0.19031632]
[1643820258895,0.15750949,2654.7,2654.1,0.19031632]
[1643820259095,0.00226531,2654.2,2654.1,0.19031632]
[1643820259695,0.00226531,2654.2,2654.1,1.61685054]
[1643820260096,0.00226531,2654.2,2654.1,5.56685054]
[1643820260801,0.15975362,2654.2,2654.1,5.56685054]
[1643820261048,0.00226531,2654.2,2654.1,6.56685054]
[1643820261447,0.00226531,2654.2,2654.1,5.56685054]
[1643820261646,0.00226531,2654.2,2654.1,6.56685054]
[1643820261848,0.00226531,2654.2,2654.1,6.86685054]
[1643820262246,0.00429073,2654.3,2654.2,3.50181109]
[1643820262450,4.91386796,2655.0,2654.2,4.92653422]
[1643820262648,0.15811124,2654.9,2654.6,0.85209689]
[1643820263050,0.01147313,2655.3,2654.8,3.75]
[1643820263251,0.01147313,2655.3,2654.9,1.0]
[1643820263752,6.46e-05,2655.4,2654.9,1.9987]
[1643820263948,6.46e-05,2655.4,2654.9,2.19230258]
[1643820263949,0.0028694,2655.2,2654.9,2.19230258]
[1643820264147,0.0028694,2655.2,2655.0,0.74564124]
[1643820264349,0.70935545,2655.9,2655.2,5.75560567]
[1643820264550,1.13071092,2656.5,2655.5,5.76596999]
[1643820264795,1.0706829,2656.6,2655.6,2.28357]
[1643820264992,1.0706829,2656.6,2655.7,0.543]
[1643820265193,1.0706829,2656.6,2655.8,0.1882]
[1643820265392,0.94251092,2656.9,2656.0,6.69849616]
[1643820265597,0.84917222,2658.0,2656.0,6.69849616]
[1643820265598,0.88441092,2657.1,2656.1,0.7312]
[1643820265793,0.1882,2657.7,2656.1,5.85358]
[1643820265794,1.60196638,2657.5,2656.1,5.85358]
[1643820266193,1.2431,2658.2,2656.1,5.85358]
[1643820266194,1.60176638,2657.7,2656.1,5.85358]
[1643820266392,1.60176638,2657.7,2657.3,0.78288544]
[1643820266593,0.1881,2657.6,2657.3,0.78288544]
[1643820266792,0.1881,2657.6,2656.6,0.94106]
[1643820266793,0.1881,2657.6,2656.6,3.80604564]
[1643820266993,0.188,2657.9,2656.6,0.94741101]
[1643820267192,0.188,2657.9,2656.7,1.0]
[1643820267393,0.86525395,2657.9,2656.6,1.24741101]
[1643820267593,0.188,2658.0,2656.7,2.86038256]
[1643820267594,0.188,2657.8,2656.7,2.86038256]
[1643820267793,0.188,2657.9,2657.5,0.69710301]
[1643820267994,0.188,2657.9,2657.6,0.2098485]
[1643820268443,2.55245983,2658.6,2657.6,0.2098485]
[1643820268444,0.188,2658.4,2657.6,0.2098485]
[1643820268649,0.188,2658.5,2657.6,0.2098485]
[1643820268846,0.13819997,2658.8,2657.6,0.2098485]
[1643820268847,0.00503414,2657.9,2657.6,0.2098485]
[1643820269044,0.00503414,2657.9,2657.7,0.00473091]
[1643820269350,0.00503414,2657.9,2657.8,0.67236805]
[1643820269546,0.00503414,2657.9,2657.7,0.00473091]
[1643820269744,0.9409821,2658.9,2657.7,0.00473091]
[1643820269946,0.188,2658.8,2657.7,0.00473091]
[1643820270144,0.188,2658.8,2657.6,0.2098485]
[1643820270145,0.00503411,2657.9,2657.6,0.2098485]
[1643820270544,0.00503411,2657.9,2657.8,0.84169336]
[1643820270747,0.00503411,2657.9,2657.2,0.00652071]
[1643820270946,0.188,2658.2,2657.2,0.00652071]
[1643820271147,0.188,2658.2,2656.8,1.3]
[1643820271347,0.00503408,2658.0,2656.8,1.3]
[1643820271544,0.188,2657.9,2656.8,0.3]
[1643820271745,0.188,2657.9,2657.0,0.83671921]
[1643820272191,0.188,2657.9,2657.6,0.18902081]
[1643820272392,0.86654468,2657.9,2657.6,0.18902081]
[1643820272691,0.86654468,2657.9,2657.0,0.83671921]
[1643820272894,0.188,2657.8,2656.5,0.188]
[1643820273391,0.543,2657.7,2656.5,0.188]
[1643820273591,0.00503454,2657.3,2656.4,0.188]
[1643820273792,0.00503454,2657.3,2656.2,0.188]
[1643820273996,0.81234242,2657.3,2656.6,0.68991396]
[1643820274394,0.81234242,2657.3,2657.0,0.000809]
[1643820274593,0.80730788,2657.3,2657.0,0.000809]
[1643820274793,0.00503467,2657.1,2657.0,0.000809]
[1643820275499,0.00127138,2657.1,2657.0,0.000809]
[1643820275697,3.31837891,2657.1,2657.0,0.000809]
[1643820276448,0.000791,2656.9,2656.0,0.2099]
[1643820276644,1.67289,2656.8,2656.0,0.2099]
[1643820276840,1.0,2656.6,2655.1,1.11987]
[1643820277039,0.7312,2656.5,2655.2,1.89521]
[1643820277439,0.7312,2656.5,2656.0,0.19928114]
[1643820278041,0.7312,2656.5,2656.4,0.17650151]
[1643820278243,0.7312,2656.5,2656.0,0.00503605]
[1643820278442,0.7312,2656.5,2656.1,0.73924927]
[1643820278641,0.7312,2656.5,2656.0,0.00463543]
[1643820278843,0.7312,2656.5,2656.1,1.70643]
[1643820278844,0.543,2656.5,2656.1,1.70643]
[1643820279246,0.543,2656.5,2656.2,0.17499238]
[1643820279443,0.543,2656.5,2656.2,3.89054238]
[1643820279903,1.48469,2656.5,2656.2,3.89054238]
[1643820280607,1.44469,2656.5,2656.2,3.89054238]
[1643820280805,1.44469,2656.5,2656.2,1.88135238]
[1643820281107,1.44469,2656.5,2656.2,0.17499238]
[1643820281311,0.543,2656.5,2656.2,0.17499238]
[1643820282405,0.543,2656.5,2656.2,0.06782026]
[1643820283207,3.82245006,2656.6,2656.2,0.06782026]
[1643820283444,3.81984508,2656.6,2656.2,0.06782026]
[1643820284251,0.00178908,2656.4,2656.3,0.00085504]
[1643820285846,0.00178908,2656.4,2656.3,0.18905504]
[1643820286046,0.00178908,2656.4,2656.3,0.00085504]
[1643820288103,3.03064676,2656.4,2656.3,0.00085504]
[1643820288296,3.17864676,2656.4,2656.3,0.00085504]
[1643820288496,4.17704676,2656.4,2656.3,0.00085504]
[1643820288697,0.70373803,2656.2,2655.8,0.13312675]
[1643820288904,5.20233161,2656.2,2655.8,0.13312675]
[1643820289099,3.69318251,2656.2,2655.8,0.13312675]
[1643820289898,4.52966179,2656.2,2655.8,0.13312675]
[1643820290100,0.9418,2656.1,2655.8,0.13312675]
[1643820290700,0.9418,2656.1,2655.9,0.0042332]
[1643820292146,3.3947423,2656.1,2655.9,0.0042332]
[1643820292353,0.9418,2656.1,2655.9,0.0042332]
[1643820292647,0.9418,2656.1,2655.1,0.1882]
[1643820292849,0.09627946,2656.0,2655.1,0.1882]
[1643820293053,0.94440498,2656.1,2655.9,0.0042332]
[1643820293455,0.09630412,2656.0,2655.9,0.0042332]
[1643820293854,0.09630412,2656.0,2655.7,0.1909472]
[1643820294053,0.00260498,2656.1,2655.8,0.00428985]
[1643820294456,0.00260498,2656.1,2656.0,0.00080807]
[1643820294698,0.00260498,2656.4,2656.0,0.00080807]
[1643820295307,0.86714588,2656.4,2656.0,0.00080807]
[1643820295502,0.09653184,2656.3,2656.0,0.00080807]
[1643820296902,1.03823184,2656.3,2656.0,0.00080807]
[1643820297102,0.09653184,2656.2,2656.0,0.00080807]
[1643820298303,0.09653184,2656.2,2656.0,0.20725851]
[1643820298943,0.86714588,2656.4,2656.0,0.20725851]
[1643820299145,0.09666584,2656.3,2656.0,0.20725851]
[1643820299348,0.86714588,2656.4,2656.0,0.00080807]
[1643820299545,0.00188268,2656.2,2656.0,0.00080807]
[1643820299944,0.09858377,2656.2,2656.0,0.00080807]
[1643820301345,0.00188268,2656.2,2656.0,0.00080807]
[1643820301846,1.00188268,2656.2,2656.0,0.00080807]
[1643820302048,2.75884588,2656.1,2656.0,0.00080807]
[1643820302310,0.09670109,2656.1,2656.0,0.00080807]
[1643820302503,2.66814497,2656.1,2656.0,8.07e-06]
[1643820303102,0.09670109,2656.1,2656.0,8.07e-06]
[1643820304303,0.09867712,2656.1,2656.0,0.00083136]
[1643820307855,2.50529078,2656.1,2656.0,0.00083136]
[1643820308249,0.09867712,2656.1,2656.0,0.00083136]
[1643820309047,0.09867712,2656.1,2655.9,0.00428841]
[1643820309449,3.15561062,2656.0,2655.4,1.01558099]
[1643820309700,0.09670109,2655.9,2655.4,0.15984576]
[1643820310098,0.09670109,2655.9,2655.1,0.1882]
[1643820310300,1.98048109,2655.9,2655.1,0.1882]
[1643820310503,4.38717777,2655.9,2655.1,0.1882]
[1643820310697,0.09670109,2655.8,2655.1,0.1882]
[1643820310902,0.88025739,2655.7,2655.0,1.3554]
[1643820311100,0.09670109,2655.6,2655.4,0.00428863]
[1643820311400,2.51399585,2655.6,2655.4,0.00428863]
[1643820311602,2.99670109,2655.5,2655.4,0.00428863]
[1643820311999,2.99670109,2655.5,2654.8,0.1882]
[1643820312205,0.22033446,2655.2,2654.8,0.1882]
[1643820312402,0.09670109,2655.1,2654.8,0.1882]
[1643820312602,0.01049631,2655.0,2654.8,0.1882]
[1643820312800,0.01049631,2655.0,2654.0,0.0172081]
[1643820312801,4.1,2654.8,2654.0,0.0172081]
[1643820313009,0.09670109,2654.7,2654.0,0.0172081]
[1643820313202,0.83127942,2654.4,2653.6,5.0741]
[1643820313450,1.8849,2654.6,2653.7,1.48367663]
[1643820313648,0.94242,2654.3,2653.7,1.48367663]
[1643820314445,0.94242,2654.3,2653.5,0.18979151]
[1643820314446,5.21804211,2654.3,2653.8,1.48367663]
[1643820314648,5.21804211,2654.3,2653.5,0.85976116]
[1643820314649,0.09880474,2654.2,2653.5,0.18979151]
[1643820314847,1.00561062,2653.9,2653.6,1.48350596]
[1643820315046,1.00561062,2653.9,2653.7,1.48350596]
[1643820315246,1.00561062,2653.9,2653.8,1.48350596]
[1643820315447,1.00561062,2653.9,2653.8,1.48497045]
[1643820315652,1.00561062,2653.9,2653.7,1.48497045]
[1643820315859,1.00561062,2653.9,2653.8,4.88497045]
[1643820316447,1.00561062,2653.9,2653.8,1.48497045]
[1643820316848,1.00561062,2653.9,2653.7,1.48497045]
[1643820317051,2.24561241,2653.9,2653.7,0.00484551]
[1643820317345,6.84815059,2653.8,2653.7,0.00484551]
[1643820317525,7.56326027,2653.8,2653.7,0.00484551]
[1643820317914,7.91693924,2653.8,2653.7,0.00484551]
[1643820318113,7.91933924,2653.8,2653.7,0.00484551]
[1643820318317,8.85980924,2653.8,2653.1,0.00149151]
[1643820318513,2.88938826,2653.6,2653.1,0.00149151]
[1643820318814,0.1884,2653.5,2653.1,0.00149151]
[1643820319013,0.88905241,2653.4,2653.1,0.00149151]
[1643820319312,0.16003378,2653.3,2652.7,0.00149151]
[1643820319715,0.16003378,2653.3,2652.4,0.00149151]
[1643820320113,0.50280531,2653.2,2652.4,0.00149151]
[1643820320313,1.00561062,2653.2,2652.4,0.00149151]
[1643820320514,1.94848062,2653.2,2652.6,0.87538776]
[1643820320717,1.94848062,2653.2,2653.0,0.60455191]
[1643820320718,1.00561062,2653.2,2653.0,0.60455191]
[1643820321547,1.00561062,2653.2,2653.0,0.6]
[1643820321748,1.00561062,2653.2,2653.0,0.60455194]
[1643820322748,1.00561062,2653.2,2653.0,0.6]
[1643820323150,1.00561062,2653.2,2653.0,0.60503167]
[1643820323652,1.83998259,2653.2,2653.0,0.60503167]
[1643820324047,1.83998259,2653.2,2653.0,0.6]
[1643820324249,0.00217101,2653.1,2653.0,0.60503167]
[1643820324903,0.00217101,2653.1,2652.6,0.02012969]
[1643820325105,2.18438073,2653.1,2652.6,0.02012969]
[1643820325305,0.94306,2652.9,2652.4,0.00149151]
[1643820325505,0.50280531,2652.8,2652.4,0.00149151]
[1643820325703,3.42148429,2652.8,2652.2,0.00149151]
[1643820325905,4.36224809,2652.8,2652.2,0.00149151]
[1643820326105,1.94637442,2652.8,2652.2,0.00149151]
[1643820326508,5.71861442,2652.8,2652.0,0.00149151]
[1643820326706,0.94307,2652.6,2652.0,0.00149151]
[1643820326907,1.88612,2652.6,2652.0,0.00149151]
[1643820327807,5.72091272,2652.8,2652.0,0.00149151]
[1643820327808,1.00561062,2652.8,2652.0,0.00149151]
[1643820328447,1.00561062,2652.8,2651.7,1.92416938]
[1643820328649,1.00561062,2652.8,2652.3,0.18058291]
[1643820329050,1.00561062,2652.8,2651.6,3.6422]
[1643820329250,1.00561062,2652.8,2652.3,0.00468506]
[1643820329251,2.44874777,2652.7,2652.3,0.00468506]
[1643820329548,0.00226946,2652.7,2652.3,0.00468506]
[1643820330348,0.00226946,2652.7,2652.4,0.00476054]
[1643820331150,0.00226946,2652.7,2652.0,0.86800884]
[1643820331352,0.00226946,2652.7,2652.4,0.0047605]
[1643820331552,0.70758567,2652.7,2652.4,0.0047605]
[1643820331952,0.00226946,2652.7,2652.4,0.0047605]
[1643820332399,0.00226946,2652.7,2652.1,0.6]
[1643820332601,0.00226946,2652.7,2652.4,0.0047605]
[1643820333400,0.00226946,2652.7,2652.6,3.3815117]
[1643820333601,0.00226946,2652.7,2652.6,0.1815117]
[1643820334204,0.0022628,2653.1,2652.6,0.1815117]
[1643820334902,0.0022628,2653.1,2652.5,0.1884]
[1643820335105,0.0022628,2653.1,2652.7,0.00434088]
[1643820335702,0.0022628,2653.1,2652.2,0.17133794]
[1643820335703,0.50280531,2652.6,2652.2,0.17133794]
[1643820335962,0.50280531,2652.6,2652.3,1.07141673]
[1643820336149,1.00561062,2652.6,2652.3,1.07141673]
[1643820336556,1.00561062,2652.6,2652.3,1.37141673]
[1643820336948,1.00561062,2652.6,2652.3,1.07141673]
[1643820338753,1.00561062,2652.6,2652.3,1.07623624]
[1643820339154,0.00225614,2652.5,2652.3,1.07623624]
[1643820339351,0.00225614,2652.5,2652.3,0.00481951]
[1643820339552,0.00225614,2652.5,2652.2,0.15397104]
[1643820339801,0.00225614,2652.5,2652.3,0.00481954]
[1643820340404,0.00225614,2652.5,2652.3,0.88363428]
[1643820340806,0.00225614,2652.5,2652.3,0.87881474]
[1643820341005,0.50280531,2652.4,2652.3,0.88363428]
[1643820341204,0.50280531,2652.4,2652.3,4.18363428]
[1643820341405,1.00561062,2652.4,2652.3,4.18363428]
[1643820342103,1.00561062,2652.4,2652.3,4.17881474]
[1643820342903,1.00561062,2652.4,2652.3,5.47881474]
[1643820343303,1.00561062,2652.4,2652.3,4.17881474]
[1643820344351,1.0078601,2652.4,2652.3,4.17881474]
[1643820344947,3.81708504,2653.2,2652.7,0.69588912]
[1643820344948,1.43455344,2653.2,2652.7,0.69588912]
[1643820345148,1.24605344,2653.2,2652.7,0.69588912]
[1643820345548,1.24165669,2653.2,2652.8,0.77190631]
[1643820345747,1.13117,2653.3,2652.8,0.77190631]
[1643820345947,0.00439739,2653.2,2652.8,0.77190631]
[1643820346750,1.13117,2653.3,2652.8,0.77190631]
[1643820346953,1.13117,2653.3,2652.8,0.77341216]
[1643820347199,0.00425713,2653.2,2652.8,0.77341216]
[1643820347598,0.00425713,2653.2,2653.1,2.49822399]
[1643820347999,7.25828209,2654.2,2653.1,5.39822399]
[1643820348000,0.1884,2654.1,2653.1,5.39822399]
[1643820348399,0.00425718,2653.3,2653.2,2.9362468]
[1643820348800,0.00425718,2653.3,2653.2,0.6862468]
[1643820349002,0.00224819,2653.3,2653.2,0.6862468]
[1643820349203,1.1309,2653.9,2653.2,0.6862468]
[1643820349799,0.1884,2654.1,2653.2,0.6862468]
[1643820350300,2.52645427,2654.2,2653.6,0.17798802]
[1643820350503,2.52645427,2654.2,2653.2,0.9862468]
[1643820350504,0.95168227,2654.2,2653.3,0.3]
[1643820350703,2.48304294,2654.4,2653.2,0.8990268]
[1643820350704,0.10032,2654.1,2653.2,0.8990268]
[1643820350952,0.00428532,2653.8,2653.2,0.51278]
[1643820351153,0.00428532,2653.8,2652.9,8.9213]
[1643820351355,0.00428532,2653.8,2652.9,7.9213]
[1643820351552,0.00428532,2653.8,2652.8,1.24409221]
[1643820351755,0.1884,2653.7,2652.8,1.24409221]
[1643820352156,0.00428548,2653.5,2652.9,0.86922388]
[1643820352853,0.1884,2653.7,2652.9,0.86922388]
[1643820353054,0.11925494,2653.6,2652.9,0.86922388]
[1643820353259,0.0042854,2653.4,2652.9,0.86922388]
[1643820353854,0.0042854,2653.4,2653.3,0.90791412]
[1643820354156,1.1310337,2653.9,2653.3,1.11165388]
[1643820354157,0.00205487,2653.7,2653.3,1.11165388]
[1643820354357,0.00428614,2653.4,2653.3,1.11165388]
[1643820354557,0.00428614,2653.4,2653.3,1.41165388]
[1643820355001,0.00428614,2653.4,2653.3,6.71165388]
[1643820355300,0.00205487,2653.7,2653.3,1.11165388]
[1643820355700,0.00428627,2653.5,2653.3,0.90791412]
[1643820355900,0.00428627,2653.5,2652.9,1.1884]
[1643820356101,0.00428627,2653.5,2652.9,0.4884]
[1643820356300,0.00428627,2653.5,2652.9,0.1884]
[1643820356502,0.11975917,2653.4,2653.0,1.46416906]
[1643820356701,0.00205487,2653.7,2653.0,1.46416906]
[1643820356901,0.00205487,2653.7,2653.1,0.2051816]
[1643820356902,0.00428619,2653.4,2653.1,0.2051816]
[1643820357803,0.00205487,2653.7,2653.1,0.2051816]
[1643820358003,0.00205487,2653.7,2653.6,3.10372636]
[1643820358202,0.02215826,2653.8,2653.6,0.99853156]
[1643820358476,0.70597545,2654.3,2653.6,0.99853156]
[1643820358669,0.70597545,2654.2,2653.6,0.99853156]
[1643820359265,0.00428284,2654.1,2653.6,0.99853156]
[1643820360066,0.70597545,2654.2,2653.6,0.99853156]
[1643820360468,0.00428289,2654.0,2653.6,1.29853156]
[1643820361067,0.00428289,2654.0,2653.7,0.66478]
[1643820361267,0.32659997,2654.9,2653.7,0.66478]
[1643820361268,0.70597545,2654.7,2653.8,0.1884]
[1643820361567,0.70597545,2654.7,2653.8,0.94660762]
[1643820361767,0.00427937,2653.9,2653.8,0.9404]
[1643820361968,0.00427937,2653.9,2653.8,6.6904]
[1643820362427,0.00427937,2653.9,2653.8,7.90318]
[1643820362621,0.70597545,2655.0,2653.9,0.00546111]
[1643820362822,1.86608103,2655.8,2653.9,0.00546111]
[1643820362823,0.70597545,2655.1,2654.0,1.29999999]
[1643820363024,0.70597545,2655.2,2654.1,0.1577972]
[1643820363219,0.70597545,2655.3,2655.1,0.19346721]
[1643820363426,0.20530706,2655.6,2655.2,5.46278]
[1643820363427,0.01710706,2655.6,2655.2,5.46278]
[1643820363623,0.7109697,2655.9,2655.3,0.72345051]
[1643820363825,1.1295006,2656.2,2655.9,0.79940733]
[1643820363826,0.7109697,2656.2,2655.9,0.79940733]
[1643820364022,0.9439102,2656.4,2655.6,0.452]
[1643820364023,0.7109697,2656.3,2655.6,0.452]
[1643820364223,0.0026096,2656.1,2655.7,0.21724124]
[1643820364822,0.7135793,2656.4,2655.7,0.21724124]
[1643820365031,0.0026096,2656.4,2655.8,0.43217728]
[1643820365224,0.0026096,2656.4,2655.9,0.1882]
[1643820365225,0.0028602,2656.0,2655.9,0.1882]
[1643820365424,0.0028602,2656.0,2655.9,0.6402]
[1643820365722,0.0028602,2656.0,2655.9,2.39201636]
[1643820365974,0.0028602,2656.0,2655.9,6.39201636]
[1643820366161,0.0028602,2656.0,2655.9,7.69201636]
[1643820366362,0.0028602,2656.1,2655.9,6.75076636]
[1643820366564,0.0028602,2656.1,2656.0,0.00960957]
[1643820366764,0.0028602,2656.1,2655.9,1.11056636]
[1643820366961,0.0028602,2656.1,2656.0,2.802]
[1643820367162,0.0028602,2656.1,2655.8,0.19297798]
[1643820367364,0.01143909,2656.5,2655.8,0.00477798]
[1643820367365,0.1908096,2656.5,2655.8,0.00477798]
[1643820367567,0.0028602,2656.1,2655.8,0.00477798]
[1643820368564,0.1908096,2656.5,2655.8,0.85533974]
[1643820368865,0.0028901,2656.1,2655.8,0.85533974]
[1643820369468,0.00195097,2656.0,2655.8,0.85533974]
[1643820369900,0.00195097,2656.0,2655.8,1.06811974]
[1643820370300,0.00195097,2656.0,2655.8,1.36811974]
[1643820371005,0.00195097,2656.0,2655.8,0.85533974]
[1643820371203,0.00195097,2656.0,2655.8,1.15533974]
[1643820371204,0.00484107,2656.0,2655.8,1.15533974]
[1643820371401,0.00484107,2656.0,2655.8,1.36811974]
[1643820371802,0.00484107,2656.0,2655.8,1.82011974]
[1643820372202,0.00195097,2656.0,2655.8,1.82011974]
[1643820372605,0.00658455,2656.0,2655.8,1.82011974]
[1643820373005,0.00658455,2656.0,2655.9,8.49789428]
[1643820373206,8.455e-05,2656.0,2655.9,9.94989427]
[1643820373453,0.0026096,2656.9,2655.9,8.20199999]
[1643820373654,0.0026096,2656.9,2656.0,3.00127739]
[1643820373855,0.01853143,2656.5,2656.2,0.22185443]
[1643820374062,0.01853143,2656.5,2656.3,0.452]
[1643820374255,0.1882,2657.4,2656.4,5.4]
[1643820374455,0.1882,2657.4,2656.5,0.452]
[1643820374656,0.188,2657.5,2656.5,2.69302]
[1643820374855,0.188,2657.5,2656.9,0.71906945]
[1643820375056,0.0026096,2657.4,2656.9,1.01906945]
[1643820375260,0.0026096,2657.4,2657.0,0.00405235]
[1643820375756,0.0026096,2658.0,2657.1,0.16582168]
[1643820375957,0.188,2657.9,2657.1,0.16582168]
[1643820376155,0.188,2657.9,2657.3,0.85500858]
[1643820376555,0.0026096,2658.2,2657.3,1.16182122]
[1643820376556,0.188,2658.1,2657.3,1.16182122]
[1643820376755,0.0026096,2657.8,2657.3,0.86182122]
[1643820377201,0.0026096,2658.4,2657.3,0.86182122]
[1643820377402,0.9482841,2658.1,2657.3,0.86182122]
[1643820377602,0.9482841,2658.1,2657.3,0.00681264]
[1643820377807,0.0026096,2658.0,2657.3,0.00681264]
[1643820378004,0.38568834,2658.0,2657.3,0.00297577]
[1643820378203,0.09825402,2657.9,2657.3,0.00297577]
[1643820378404,0.188,2657.8,2657.3,0.00297577]
[1643820378606,0.09825402,2657.7,2657.3,0.00297577]
[1643820378805,0.09825402,2657.7,2656.4,1.1412745]
[1643820378806,1.12939,2657.6,2656.4,0.0017745]
[1643820379015,0.09825402,2657.5,2656.4,0.0017745]
[1643820379304,0.09825402,2657.5,2656.3,8.37768]
[1643820379305,0.188,2657.4,2656.3,8.37768]
[1643820379607,0.0026096,2657.5,2657.2,0.19441829]
[1643820380103,0.188,2657.7,2656.4,0.188]
[1643820380309,0.09799483,2657.6,2656.4,0.188]
[1643820380506,0.09799483,2657.6,2656.4,0.79304903]
[1643820380507,0.188,2657.5,2656.4,0.79304903]
[1643820381158,0.188,2657.5,2657.0,0.2206379]
[1643820381358,0.188,2657.5,2656.4,0.79304903]
[1643820381359,0.0026096,2657.4,2656.4,0.79304903]
[1643820381557,0.0026096,2657.4,2656.8,0.84187288]
[1643820381960,0.00182663,2657.8,2656.8,0.84187288]
[1643820381961,0.0026096,2657.6,2656.8,0.84187288]
[1643820382758,0.00182663,2657.8,2656.9,0.16126837]
[1643820382962,0.00182663,2657.8,2657.7,0.20372027]
[1643820383159,0.00182663,2657.8,2657.4,0.86996107]
[1643820383357,0.00182663,2657.8,2656.7,10.6995665]
[1643820383558,0.00504036,2657.3,2656.7,10.6995665]
[1643820383758,0.00504036,2657.3,2656.7,7.9024]
[1643820384158,0.00504036,2657.3,2656.8,0.20941759]
[1643820384361,0.00180008,2657.4,2656.9,0.452]
[1643820384563,0.0050405,2657.1,2656.9,0.452]
[1643820384830,0.0050405,2657.1,2656.9,0.752]
[1643820385018,0.0050405,2657.1,2656.9,0.6572771]
[1643820385218,0.0050405,2657.1,2657.0,0.21278]
[1643820385417,0.00180008,2657.4,2657.0,6.75648134]
[1643820385622,0.00180008,2657.4,2657.0,9.51782144]
[1643820385818,0.00180008,2657.4,2657.1,4.1752]
[1643820386018,0.00180008,2657.4,2657.1,4.6272]
[1643820386418,0.00180008,2657.4,2657.2,0.17598964]
[1643820386819,0.00180008,2657.4,2657.2,3.96418964]
[1643820387019,0.00683598,2657.4,2657.2,3.96418964]
[1643820388118,0.00683595,2657.4,2657.2,3.96418964]
[1643820389153,0.00180008,2657.4,2657.2,3.96418964]
[1643820389360,0.00180008,2657.4,2657.3,1.0]
[1643820389554,0.00180008,2657.4,2657.3,7.26478]
[1643820389754,0.00180008,2657.4,2657.3,6.56478]
[1643820389951,0.00180008,2657.4,2657.3,8.71558]
[1643820390859,0.00180008,2657.4,2657.3,3.11558]
[1643820391852,0.00180008,2657.4,2657.3,1.6028]
[1643820392053,0.00180008,2657.4,2657.2,3.97378964]
[1643820392054,0.00180008,2657.4,2657.2,0.17598964]
[1643820392305,0.00180008,2657.4,2656.8,1.1869]
[1643820392708,0.00180008,2657.4,2656.5,7.2068]
[1643820392906,0.00180008,2657.4,2656.5,7.0188]
[1643820393106,0.00503979,2657.2,2657.0,0.7038929]
[1643820393907,0.00180008,2657.4,2657.0,0.7038929]
[1643820394106,0.00327336,2657.2,2657.0,0.7038929]
[1643820394308,0.00327336,2657.2,2656.8,1.0]
[1643820394508,0.13819997,2658.3,2656.9,2.95]
[1643820394509,0.188,2658.2,2656.9,2.95]
[1643820394706,0.188,2658.2,2656.7,7.9024]
[1643820395109,0.188,2658.2,2656.5,7.0188]
[1643820395110,1.0,2657.9,2656.5,7.0188]
[1643820395309,0.79900659,2657.6,2656.8,0.83040795]
[1643820395508,0.188,2657.5,2656.5,7.0188]
[1643820395807,0.19271446,2657.5,2656.5,3.8626]